Cogmind - Beta 13 @@@ ROGUE MODE // 2024.06.09 @ 20:16:29 Player: Sherlockkat Result: Self-destructed Performance ------------- Evolutions (8) 4000 Regions Visited (23) 4600 Robots Destroyed (330) 1650 Value Destroyed (13123) 13123 Prototype IDs (34) 680 Alien Tech Used (0) 0 Bonus (1444) 1444 TOTAL SCORE: 25497 Bonus ------- High Alert Combat Kills 1011 Follower Combat Kills 1038 Network Hubs Disabled 200 Met Data Miner 300 Met Imprinter 300 Friendly Fire -1405 Cogmind --------- Core Integrity 1136/1450 Matter 213/300 Energy 555/555 System Corruption 12% Temperature Cool (0) Movement Treading (400) Ox3 Location -2/Research Parts ------- > --- POWER (2) -------- Neutrino Core Particle Reactor > --- PROPULSION (6) --- Medium Treads > --- UTILITY (12) ----- Advanced Heat Sink Advanced Heat Sink High-capacity Storage Unit Advanced Signal Interpreter Advanced Targeting Computer Quantum Capacitor Graphene Brace > --- WEAPON (3) ------- Hypervelocity Mass Driver > --- INVENTORY (20) --- Micro Fission Core Quantum Reactor Advanced Cryofiber Web Huge Storage Unit Quantum Capacitor Weapon Cycler EM Disruption Field Advanced Shield Generator Improved Force Field Authchip [Propulsion] Authchip [Device] Long-range Proton Cannon Compact HERF Cannon CR-A16's Pointy Stick Peak State ------------ > --- POWER ------------ Micro Fission Core Particle Reactor > --- PROPULSION ------- Improved Treads Improved Treads Medium Treads Medium Treads Centrium Heavy Treads > --- UTILITY ---------- Advanced Heat Sink High-capacity Storage Unit Core Analyzer Weapon Cycler Light Regenerative Plating Advanced Shield Generator Advanced Hacking Suite Mini Drone Bay > --- WEAPON ----------- Advanced Variable Charge Gun Hypervelocity Gauss Rifle Advanced KE Penetrator > --- INVENTORY -------- Quantum Reactor Centrium Heavy Treads Centrium Heavy Treads Huge Storage Unit Kinecellerator Improved Transmission Jammer Hardened Medium Armor Plating Centrium Medium Armor Plating Advanced Shield Generator Authchip [Propulsion] Authchip [Device] HERF Cannon Ion Burst Cannon Heavy Phase Cannon Advanced KE Penetrator Hypervelocity Gauss Cannon Heavy Rocket Launcher CR-A16's Pointy Stick [Rating: 115] Favorites ----------- Power Hybrid Deuterium Engine Engine Hybrid Deuterium Engine Power Core Fission Core Reactor Light Antimatter Reactor Propulsion Light Treads Treads Light Treads Leg Flexi-carbon Leg Wheel Compact Wheel Utility High-capacity Storage Unit Device Weapon Cycler Storage High-capacity Storage Unit Processor Core Analyzer Hackware Advanced Hacking Suite Protection Light Regenerative Plating Weapon Improved Heavy Machine Gun Energy Gun High-powered Field Laser Energy Cannon Ion Burst Cannon Ballistic Gun Improved Heavy Machine Gun Ballistic Cannon Gauss Cannon Launcher Advanced EMP Blaster Piercing Weapon CR-A16's Pointy Stick Build | -11 -10 -10 -9 -8 -8 -7 -7 -7 -7 -6 -6 -6 -6 -6 -5 -5 -5 -5 -5 -5 -4 -3 -2 ------- Run | Yrd Mat Min Mat Mat Sto Fac Low Low Zio Pro Fac Low Low Dat Pro Fac Ext Cet Arc Hub Fac Res Res Slots Evolved 16 | . . . 2 2 . 2 . . . . 2 . . . . 2 . . . . 2 2 2 Power 1 | . . . . . . . . . . . . . . . . 1 . . . . . . . Propulsion 4 | . . . 1 . . 1 . . . . . . . . . . . . . . 2 . . Utility 10 | . . . 1 1 . 1 . . . . 2 . . . . 1 . . . . . 2 2 Weapon 1 | . . . . 1 . . . . . . . . . . . . . . . . . . . Parts Attached 264 | 6 3 2 23 1 22 21 6 3 2 2 34 5 4 3 2 13 20 9 10 17 38 3 15 Power 26 | 1 1 . 4 . 2 3 . . . . 1 . . . . 1 1 1 2 . 6 2 1 Engine 12 | 1 1 . 4 . 2 3 . . . . . . . . . 1 . . . . . . . Core 7 | . . . . . . . . . . . 1 . . . . . 1 . . . 3 1 1 Reactor 7 | . . . . . . . . . . . . . . . . . . 1 2 . 3 1 . Propulsion 72 | 2 . 1 7 . 6 5 3 . . 2 9 1 2 . . 5 7 4 4 2 9 . 3 Treads 61 | . . . 5 . 6 5 3 . . 2 9 1 2 . . 5 7 4 4 2 4 . 2 Leg 2 | . . . . . . . . . . . . . . . . . . . . . 1 . 1 Wheel 9 | 2 . 1 2 . . . . . . . . . . . . . . . . . 4 . . Hover . | . . . . . . . . . . . . . . . . . . . . . . . . Flight . | . . . . . . . . . . . . . . . . . . . . . . . . Utility 79 | 1 1 . 5 1 7 7 . 1 . . 13 2 2 . 2 6 4 2 3 4 10 1 7 Device 35 | . . . 3 . . 2 . . . . 4 1 . . 1 4 3 . 3 1 8 1 4 Storage 9 | 1 1 . . . 4 1 . . . . . . . . . . . . . 2 . . . Processor 5 | . . . . . 1 1 . . . . 1 . . . . . . . . . . . 2 Hackware 4 | . . . . 1 . . . . . . 1 . . . . 1 1 . . . . . . Protection 26 | . . . 2 . 2 3 . 1 . . 7 1 2 . 1 1 . 2 . 1 2 . 1 Artifact . | . . . . . . . . . . . . . . . . . . . . . . . . Weapon 87 | 2 1 1 7 . 7 6 3 2 2 . 11 2 . 3 . 1 8 2 1 11 13 . 4 Energy Gun 18 | 1 1 1 4 . 2 . . 1 1 . 1 1 . 2 . . 1 1 . . . . 1 Energy Cannon 17 | . . . 1 . . . 1 . . . 5 . . . . . 1 . . 2 6 . 1 Ballistic Gun 28 | 1 . . 2 . 4 4 1 . 1 . 3 1 . 1 . 1 1 1 . 3 4 . . Ballistic Cannon 11 | . . . . . . . . 1 . . . . . . . . 4 . 1 2 2 . 1 Launcher 8 | . . . . . 1 2 1 . . . 1 . . . . . 1 . . 1 . . 1 Special Weapon . | . . . . . . . . . . . . . . . . . . . . . . . . Impact Weapon . | . . . . . . . . . . . . . . . . . . . . . . . . Slashing Weapon . | . . . . . . . . . . . . . . . . . . . . . . . . Piercing Weapon 5 | . . . . . . . . . . . 1 . . . . . . . . 3 1 . . Special Melee Weapon . | . . . . . . . . . . . . . . . . . . . . . . . . Unidentified Prototypes 20 | . . . 2 . 3 1 . . . . 7 . . . . . . 3 . 2 1 . 1 Corrupted Parts 3 | . . . . . . . 1 . . . 1 . . . . . . 1 . . . . . System Corruption 10 | . . . . . . . 5 . . . 1 . . . . . . 4 . . . . . Parts Lost 73 | . . 1 4 . 1 1 1 . . . 5 . . . 1 7 3 2 1 . 32 . 14 Power 7 | . . . . . . . . . . . . . . . . 1 . 1 . . 4 . 1 Propulsion 26 | . . 1 2 . . 1 1 . . . 2 . . . . 4 . . . . 10 . 5 Utility 21 | . . . . . 1 . . . . . 1 . . . 1 2 1 . . . 10 . 5 Weapon 19 | . . . 2 . . . . . . . 2 . . . . . 2 1 1 . 8 . 3 Highest Loss Streak 12 | . . 1 2 . 1 1 1 . . . 2 . . . 1 5 2 2 1 . 12 . 6 To Critical Strikes 3 | . . . . . . . . . . . . . . . . 1 . 2 . . . . . Average Slot Usage (%) 91 | . 85 81 77 87 99 98 94 99 100 100 88 99 99 82 99 93 92 98 99 100 76 49 65 Engine 4 | . 14 14 11 9 9 7 7 7 7 7 4 . . . . 4 5 5 . . . . . Core 1 | . . . . . . . . . . . 1 6 6 6 6 4 2 1 . . 3 3 3 Reactor 1 | . . . . . . . . . . . . . . . . . . 3 10 11 4 . 4 Treads 21 | . . . 4 27 27 29 27 30 30 30 24 26 26 26 26 19 22 22 23 23 12 . . Wheel 1 | . 28 24 16 . . . . . . . . . . . . . . . . . . 9 6 Device 12 | . . . 6 9 9 7 7 7 7 7 9 9 13 13 13 19 19 17 17 17 22 16 24 Storage 6 | . 14 14 11 9 9 7 7 7 7 7 6 6 6 6 6 5 5 5 5 5 5 4 4 Processor 10 | . . . . . 7 13 15 15 15 15 13 16 13 13 13 11 11 11 11 11 5 4 7 Hackware 1 | . . . . 6 1 . . . . . 1 . . . . . . 5 5 5 1 . . Protection 6 | . . . 5 9 8 6 7 7 7 7 4 12 12 13 12 6 5 5 5 5 4 . 1 Energy Gun 5 | . 14 14 14 9 9 7 4 6 7 7 3 10 13 1 13 7 . 2 5 5 1 . . Energy Cannon 2 | . . . . . . . 2 . . . 6 4 . . . . . 2 . . 4 4 4 Ballistic Gun 7 | . 14 14 7 9 17 14 12 7 7 7 4 3 6 . 6 8 10 4 5 6 6 . . Ballistic Cannon 1 | . . . . . . . . 6 7 7 1 . . . . . 2 5 4 1 . . . Naked Turns . | . . . . . . . . . . . . . . . . . . . . . . . . Heaviest Build 112 | 11 31 28 38 38 49 67 66 71 72 70 83 76 71 70 75 93 91 92 95 99 112 84 105 Greatest Support 187 | 26 26 26 60 60 60 80 87 87 87 88 90 93 93 93 93 93 95 96 107 107 187 38 38 Greatest Overweight (x) 16 | . 1 1 1 . . 1 . . . . 1 . . . . 1 1 1 . . 16 2 3 Average Overweight (x) . | . . 1 . . . . . . . . . . . . . . . . . . . 1 2 Largest Inventory Capacity 25 | 8 15 15 15 15 25 20 20 20 20 20 20 20 20 20 20 20 20 20 20 20 20 20 20 Average Capacity 19 | 6 12 15 15 15 15 19 20 20 20 20 20 20 20 20 20 20 20 20 20 20 20 20 20 Most Carried 20 | 4 7 9 15 15 15 20 20 20 20 20 20 20 20 20 20 20 20 20 20 20 20 17 19 Average Carried 18 | 2 5 7 11 15 14 18 19 20 19 20 19 20 19 20 19 18 19 19 20 19 16 14 17 Final Capacity 20 | 8 15 15 15 15 15 20 20 20 20 20 20 20 20 20 20 20 20 20 20 20 20 20 20 Final Carried 20 | 4 7 9 15 15 15 20 20 20 20 20 20 20 20 20 20 18 20 20 20 20 13 16 15 Class Distribution -------------------- 39% | Gunner 30% | Scavenger-Gunner 14% | Mutant 8% | Scavenger-Mutant 5% | Derelict-Gunner Dominant Class ---------------- Mutant | -10/Materials Mutant | -10/Mines Scavenger-Mutant | -9/Materials Scavenger-Mutant | -8/Materials Gunner | -8/Storage Gunner | -7/Factory Gunner | -7/Lower Caves Gunner | -7/Lower Caves Gunner | -7/Zion Derelict-Gunner | -6/Proximity Caves Gunner | -6/Factory Scavenger-Gunner | -6/Lower Caves Scavenger-Gunner | -6/Lower Caves Scavenger-Mutant | -6/Data Miner Scavenger-Gunner | -5/Proximity Caves Gunner | -5/Factory Gunner | -5/Extension Scavenger-Gunner | -5/Cetus Scavenger-Gunner | -5/Archives Scavenger-Gunner | -5/Hub_04(d) Scavenger-Gunner | -4/Factory Mutant | -3/Research Mutant | -2/Research Resources | -11 -10 -10 -9 -8 -8 -7 -7 -7 -7 -6 -6 -6 -6 -6 -5 -5 -5 -5 -5 -5 -4 -3 -2 ----------- Run | Yrd Mat Min Mat Mat Sto Fac Low Low Zio Pro Fac Low Low Dat Pro Fac Ext Cet Arc Hub Fac Res Res Matter Collected 9551 | 194 95 87 231 . 636 805 167 93 24 274 2685 133 130 . 128 331 1040 210 267 569 1243 40 169 Remotely . | . . . . . . . . . . . . . . . . . . . . . . . . Salvage Created 17099 | 44 107 129 756 . 1385 1520 649 130 . 468 3122 170 462 . 407 571 778 53 447 1384 3070 140 1307 Parts 785 | 2 11 5 45 . 76 81 21 7 . 21 134 12 16 . 10 28 19 3 18 69 155 3 49 Haulers Intercepted 13 | . . . 3 . 3 . . . . . 4 . . . . . . . . 2 . . 1 Recyclers Shooed 15 | . . . 1 . . 2 . . . . 6 . . . . . 1 . . . 4 . 1 Parts Field Recycled . | . . . . . . . . . . . . . . . . . . . . . . . . Retrieved Matter . | . . . . . . . . . . . . . . . . . . . . . . . . Parts Self-Destructed 58 | . . . . . . . 7 6 2 21 . 9 8 . 5 . . . . . . . . Prevented 10 | . . . . . . . 10 . . . . . . . . . . . . . . . . Kills | -11 -10 -10 -9 -8 -8 -7 -7 -7 -7 -6 -6 -6 -6 -6 -5 -5 -5 -5 -5 -5 -4 -3 -2 ------- Run | Yrd Mat Min Mat Mat Sto Fac Low Low Zio Pro Fac Low Low Dat Pro Fac Ext Cet Arc Hub Fac Res Res Combat Hostiles Destroyed 231 | . 5 2 15 . 21 27 10 1 . 10 18 5 8 . 5 11 12 1 4 13 42 3 18 Guns 153 | . 5 2 15 . 21 23 1 . . 4 12 4 8 . 5 11 11 . 3 9 19 . . Cannons 56 | . . . . . . . . 1 . 6 5 1 . . . . 1 1 1 4 21 3 12 AOE 19 | . . . . . . 4 8 . . . . . . . . . . . . . 2 . 5 Classes Destroyed 20 | 1 2 1 4 . 2 1 3 . . 1 1 2 . . . . 1 . . . 1 . . Worker 25 | . . 1 1 . 3 . . . . . 13 . . . . . . . . 3 3 . 1 Builder 12 | . . . . . 1 1 . . . . 3 . . . . 1 1 . . 1 3 . 1 Tunneler 6 | 2 . . . . . 3 . . . . 1 . . . . . . . . . . . . Hauler 13 | . . . 3 . 3 . . . . . 4 . . . . . . . . 2 . . 1 Recycler 26 | . . . 2 . 2 5 . . . . 9 . . . . . 1 . . 3 3 . 1 Minesweeper 1 | . . . . . . . . . . . . 1 . . . . . . . . . . . Mechanic 1 | . . . . . . . . . . . . . . . . . . . . . 1 . . Operator 4 | . . . . . 1 1 . . . . . . . . . . . . . 1 . . 1 Watcher 7 | . . . 1 . . 1 . . . . 1 . . . . . . . . 1 3 . . Swarmer 46 | . 3 . 6 . 4 12 1 . . 1 . 4 . . . . . . . . 9 1 5 Grunt 85 | . 2 2 6 . 10 10 4 . . 3 5 . 2 . 5 3 5 . . 4 18 2 4 Brawler 4 | . . . . . . . 1 . . . . . 1 . . . . . . . . . 2 Duelist 7 | . . . . . . . 2 . . 4 . . . . . . . . . . 1 . . Sentry 36 | . . . 3 . 7 3 2 . . 1 4 . . . . 1 3 . 4 4 2 . 2 Specialist 4 | . . . . . . . . . . . 4 . . . . . . . . . . . . Hunter 7 | . . . . . . . . . . 1 1 . . . . 2 . . . . 1 . 2 Programmer 33 | . . . . . . 2 . 1 . . 4 . 1 . . 5 1 . . 5 11 . 3 Behemoth 2 | . . . . . . . . . . . . . . . . . 2 . . . . . . Cetus Guard 1 | . . . . . . . . . . . . . . . . . . 1 . . . . . Packrat 1 | . . . . . . . . 1 . . . . . . . . . . . . . . . Samaritan 4 | . . . . . . . 1 . . . . 1 . . 2 . . . . . . . . Thief 1 | . . . . . . . . . . . . 1 . . . . . . . . . . . Thug 3 | . . . . . . . . . . . . . 1 . . . . . 2 . . . . Savage 5 | . . . . . . . . . . . . . 3 . . . 2 . . . . . . Best Kill Streak 11 | 2 3 3 3 . 5 6 9 1 . 5 4 4 5 . 3 3 3 1 4 6 11 3 6 Combat Bots Only 10 | . 3 2 2 . 4 5 9 1 . 5 3 4 5 . 3 3 3 1 4 4 10 3 5 Max Kills in Single Turn 5 | 1 1 1 1 . 2 3 4 1 . 1 1 2 1 . 1 1 2 1 1 5 4 1 2 Gunslinging 1 | . . . . . . . . . . . . 1 . . . . . . . . . . . Exploded 4 | . . . . . . 2 4 . . . . . . . . . . . . . 2 . 2 Melee . | . . . . . . . . . . . . . . . . . . . . . . . . Uniques/NPCs Destroyed 1 | . . . . . . . . . . . 1 . . . . . . . . . . . . Warbot (-6/Factory) Combat | -11 -10 -10 -9 -8 -8 -7 -7 -7 -7 -6 -6 -6 -6 -6 -5 -5 -5 -5 -5 -5 -4 -3 -2 -------- Run | Yrd Mat Min Mat Mat Sto Fac Low Low Zio Pro Fac Low Low Dat Pro Fac Ext Cet Arc Hub Fac Res Res Hostile Shots Fired 1439 | . 18 20 70 6 74 138 64 2 . 29 142 14 12 . 21 127 59 24 8 46 422 14 129 Missed 404 | . 6 4 17 1 20 45 31 1 . 8 38 5 7 . 11 29 18 6 5 12 87 2 51 Damage Taken 19126 | . 133 213 578 78 817 1152 393 15 . 455 1677 119 99 . 193 1384 1124 493 77 828 6861 246 2191 Core 2020 | . 47 51 83 . 56 78 28 . . 41 166 . 21 . 57 62 142 49 . 46 743 36 314 Absorbed by Shields 813 | . . . . . . . . . . . . . . . . 509 13 . . . 291 . . Reduced by Siege Mode 308 | . . . . . . . . . . . . . . . . . . . . . 308 . . Redirected to Shielding 110 | . . . . . . . . . . . 59 17 11 . 23 . . . . . . . . Regen/Repaired (Parts) 590 | . . . . . 43 . . . . . . . . . . 166 160 56 61 85 19 . . Core Remaining (%) 75 | 100 . 60 79 . 89 . . . . 79 . . . . 71 . . . . 70 35 97 . Volleys Fired 825 | 3 12 12 59 . 65 72 12 2 . 26 133 9 14 . 17 43 61 7 20 45 123 13 77 Largest 3 | 2 2 2 2 . 3 3 3 3 . 3 3 3 3 . 3 3 3 3 3 3 3 1 2 Hottest 213 | 60 60 70 115 . 109 114 120 156 . 148 199 200 155 . 155 155 100 153 152 152 213 100 194 Shots Fired 1854 | 6 24 24 114 . 178 208 22 6 . 78 235 28 43 . 52 118 165 20 37 116 291 13 76 Gun 1398 | 6 24 24 114 . 178 204 10 4 . 52 162 23 43 . 52 118 114 6 27 75 162 . . Cannon 435 | . . . . . . . 4 2 . 26 71 5 . . . . 49 14 10 40 129 13 72 Launcher 21 | . . . . . . 4 8 . . . 2 . . . . . 2 . . 1 . . 4 Special . | . . . . . . . . . . . . . . . . . . . . . . . . Kinetic 983 | 3 12 12 29 . 115 136 9 4 . 52 60 7 14 . 18 71 162 13 23 69 165 . 9 Thermal 778 | 3 12 12 85 . 63 68 1 2 . 26 138 21 29 . 34 47 1 . 14 46 119 13 44 Explosive 9 | . . . . . . 4 . . . . . . . . . . . . . 1 . . 4 Electromagnetic 84 | . . . . . . . 12 . . . 37 . . . . . 2 7 . . 7 . 19 Robot Hit Streak 23 | 3 5 7 14 . 18 11 12 4 . 12 19 6 15 . 11 15 20 6 7 11 23 6 8 Robot Miss Streak 8 | 2 2 3 5 . 2 4 2 . . 2 8 5 2 . 2 3 2 1 2 4 5 4 6 Penetration Max 2 | . . . . . . 1 . . . . . . . . . . . . . 1 2 . . Secondary Targets 17 | . . . . . 4 4 . . . . . 1 3 . 1 2 . . . . 2 . . Max Gunslinging Chain 1 | . . . . . 1 1 . . . . . 1 1 . 1 1 . . . . 1 . . Capacitor 74 | . . . . . . . . . . . . . . . . . . . . . . 13 61 Shots Hit Robots 1285 | 3 13 16 74 . 124 129 14 3 . 52 170 13 30 . 39 85 124 15 26 74 209 11 61 Core Hits 659 | 2 8 6 32 . 47 68 17 2 . 32 84 10 19 . 16 25 49 8 12 47 110 8 57 Critical Kills 23 | . . . . . . 1 . . . . . . . . . . . 1 1 5 14 . 1 Critical Parts Destroyed 28 | . . . 1 . 1 1 . . . . . . . . 1 . 1 1 3 5 10 . 4 Critical Strikes 94 | . . 2 4 . 4 5 . . . 6 8 1 2 . 1 3 8 4 4 11 25 . 6 Burn 26 | . . 2 3 . 3 3 . . . 2 7 1 2 . . 3 . . . . . . . Destroy 55 | . . . 1 . 1 2 . . . . . . . . 1 . 2 4 4 11 24 . 5 Blast 10 | . . . . . . . . . . 4 . . . . . . 6 . . . . . . Corrupt 3 | . . . . . . . . . . . 1 . . . . . . . . . 1 . 1 Melee Attacks 16 | . . . . . . . . . . . 2 . . . . . . . . 8 6 . . Impact . | . . . . . . . . . . . . . . . . . . . . . . . . Slashing . | . . . . . . . . . . . . . . . . . . . . . . . . Piercing 16 | . . . . . . . . . . . 2 . . . . . . . . 8 6 . . Sneak Attacks 1 | . . . . . . . . . . . 1 . . . . . . . . . . . . Combat Hostiles . | . . . . . . . . . . . . . . . . . . . . . . . . Follow-up Attacks . | . . . . . . . . . . . . . . . . . . . . . . . . Damage Inflicted 34432 | 51 149 231 1059 8 2200 2713 871 88 . 1161 4134 329 752 . 881 2053 3522 348 705 2676 6936 420 3145 Guns 20896 | 51 149 231 1053 . 2190 2427 140 20 . 638 2420 287 752 . 881 2053 2108 115 559 1578 3244 . . Cannons 10550 | . . . . . . . 107 68 . 523 1560 42 . . . . 1212 233 146 477 3156 420 2606 Explosions 2830 | . . . . . . 286 624 . . . 91 . . . . . 202 . . 588 500 . 539 Melee 132 | . . . . . . . . . . . 63 . . . . . . . . 33 36 . . Ramming 24 | . . . 6 8 10 . . . . . . . . . . . . . . . . . . Kinetic 15436 | 30 72 144 353 . 1335 1547 140 88 . 795 758 64 272 . 276 1093 3320 262 375 1173 3138 . 201 Thermal 14747 | 21 77 87 700 . 855 880 87 . . 366 2567 265 480 . 605 960 . . 330 882 3330 420 1835 Explosive 1006 | . . . . . . 286 . . . . . . . . . . . . . . 181 . 539 Electromagnetic 3087 | . . . . . . . 644 . . . 746 . . . . . 202 86 . 588 251 . 570 Impact . | . . . . . . . . . . . . . . . . . . . . . . . . Slashing . | . . . . . . . . . . . . . . . . . . . . . . . . Piercing 132 | . . . . . . . . . . . 63 . . . . . . . . 33 36 . . Highest Corruption 16 | . . . 1 . 1 3 9 9 9 . 12 12 12 12 12 7 7 11 11 16 16 . 12 Average Corruption 8 | . . . 1 . 1 1 3 9 9 . 9 12 12 12 12 3 7 9 11 12 10 . 9 Corruption Purged . | . . . . . . . . . . . . . . . . . . . . . . . . Corruption Blocked . | . . . . . . . . . . . . . . . . . . . . . . . . Effects 416 | . . . 2 . 6 13 17 23 1 . 70 26 24 5 12 7 55 10 19 52 64 . 10 Message Errors 96 | . . . . . 2 1 5 7 1 . 15 7 6 . 3 2 17 2 4 7 15 . 2 Matter Fused 102 | . . . . . . 4 3 10 . . 22 4 6 . 2 1 11 2 3 20 12 . 2 Heat Flow Errors 47 | . . . . . . . 3 4 . . 6 5 2 3 1 . 7 1 4 4 7 . . Energy Discharges 55 | . . . 2 . 1 3 1 1 . . 6 4 4 1 2 . 7 1 3 6 11 . 2 Parts Rejected 8 | . . . . . . 1 1 . . . 2 . . . . . 3 1 . . . . . Parts Fused 4 | . . . . . . . 1 . . . 1 . 1 . . . . . . 1 . . . Data Loss (minor) 35 | . . . . . . 2 1 . . . 6 2 3 1 1 2 4 2 . 7 4 . . Data Loss (major) 16 | . . . . . 1 1 . 1 . . 2 2 1 . . 1 3 1 . 1 2 . . Misfires 23 | . . . . . 1 . 2 . . . 4 1 1 . 1 . 1 . 3 3 5 . 1 Alerts 12 | . . . . . . 1 . . . . 3 . . . 2 1 . . 1 2 2 . . Misdirections 5 | . . . . . . . . . . . 1 1 . . . . . . . 1 2 . . Weapon Failures 13 | . . . . . 1 . . . . . 2 . . . . . 2 . 1 . 4 . 3 Overload Shots . | . . . . . . . . . . . . . . . . . . . . . . . . Overflow Damage 326 | . . . . . . . . 12 . 2 12 . . . . . 3 . . 15 192 . 90 Projectiles 155 | . . . . . . . . 12 . 2 12 . . . . . 3 . . 15 72 . 39 Explosions 171 | . . . . . . . . . . . . . . . . . . . . . 120 . 51 Melee . | . . . . . . . . . . . . . . . . . . . . . . . . Knockbacks 19 | . . . . . . . . . . 7 . . . . . . 2 1 . 3 5 . 1 Impact . | . . . . . . . . . . . . . . . . . . . . . . . . Kinetic 17 | . . . . . . . . . . 6 . . . . . . 2 1 . 3 4 . 1 Secondary 2 | . . . . . . . . . . 1 . . . . . . . . . . 1 . . Self-Inflicted Damage 681 | . . . . . . . 37 . . . 17 . . . . . 23 . . 99 443 . 62 Shots 11 | . . . . . . . 2 . . . 1 . . . . . 1 . . 1 5 . 1 Rammed 3 | . . . 1 2 . . . . . . . . . . . . . . . . . . . Targets Rammed 4 | . . . 1 2 1 . . . . . . . . . . . . . . . . . . Kicked . | . . . . . . . . . . . . . . . . . . . . . . . . Crushed 1 | . . . . . 1 . . . . . . . . . . . . . . . . . . Highest Temperature 482 | . 60 222 350 . 59 45 251 219 . 25 482 240 247 140 214 424 206 172 191 399 418 170 358 Average Temperature 93 | . 38 122 106 . 22 15 89 69 . 11 126 102 90 79 94 166 83 46 55 105 98 83 109 Received Heat Transfer 3648 | . 60 123 162 45 405 234 66 . . 111 291 . 45 . 72 83 219 36 9 171 1417 27 72 Effects 8 | . . . 3 . . . . . . . . . . . . 4 . . . 1 . . . Shutdowns 3 | . . . 1 . . . . . . . . . . . . 1 . . . 1 . . . Energy Bleed 1 | . . . 1 . . . . . . . . . . . . . . . . . . . . Interference 3 | . . . 1 . . . . . . . . . . . . 2 . . . . . . . Damage (minor) 1 | . . . . . . . . . . . . . . . . 1 . . . . . . . Siege Activations 4 | . . . . . . . . . . . . . . . . . . . . . 4 . . Total Turns 135 | . . . . . . . . . . . . . . . . . . . . . 135 . . Longest Duration 45 | . . . . . . . . . . . . . . . . . . . . . 45 . . Robots Corrupted 3 | . . . . . . . 1 . . . 1 . . . . . . . . . . . 1 Combat Hostiles 3 | . . . . . . . 1 . . . 1 . . . . . . . . . . . 1 Parts Fried 22 | . . . . . . . 4 . . . 11 . . . . . . . . 1 1 . 5 Impact Corruptions . | . . . . . . . . . . . . . . . . . . . . . . . . Robots Melted . | . . . . . . . . . . . . . . . . . . . . . . . . Combat Hostiles . | . . . . . . . . . . . . . . . . . . . . . . . . Parts Melted 37 | . . 1 . . 1 5 . . . . 8 . 4 . 1 4 . . . 1 7 2 3 Heat Transferred 23052 | 50 175 407 1966 . 1887 1813 100 . . 629 4513 494 925 . 999 1628 . . 407 1073 3386 500 2100 Parts Sabotaged . | . . . . . . . . . . . . . . . . . . . . . . . . Parts Stolen . | . . . . . . . . . . . . . . . . . . . . . . . . Parts Stripped . | . . . . . . . . . . . . . . . . . . . . . . . . Power Chain Reactions 2 | . . . . . . . 2 . . . . . . . . . . . . . . . . Alert | -11 -10 -10 -9 -8 -8 -7 -7 -7 -7 -6 -6 -6 -6 -6 -5 -5 -5 -5 -5 -5 -4 -3 -2 ------- Run | Yrd Mat Min Mat Mat Sto Fac Low Low Zio Pro Fac Low Low Dat Pro Fac Ext Cet Arc Hub Fac Res Res Peak Influence 956 | 10 156 105 451 139 600 527 . . . . 263 . . . . 182 567 244 229 555 956 611 691 Initial 501 | . 6 60 40 139 58 139 . . . . 63 . . . . . 15 180 93 9 271 501 343 Average 225 | 2 90 86 314 139 284 272 . . . . 108 . . . . 51 164 224 176 242 316 541 552 Maximum Alert Level 3 | . . . 2 . 2 2 . . . . 1 . . . . . 2 1 1 2 3 2 2 Low Security (%) 52 | 100 100 100 6 100 32 18 . . . . 88 . . . . 100 62 10 33 36 58 . . Level 1 32 | . . . 83 . 48 70 . . . . 11 . . . . . 22 89 66 51 14 . 19 Level 2 11 | . . . 9 . 18 11 . . . . . . . . . . 14 . . 11 6 100 80 Level 3 2 | . . . . . . . . . . . . . . . . . . . . . 20 . . Level 4 . | . . . . . . . . . . . . . . . . . . . . . . . . Level 5 . | . . . . . . . . . . . . . . . . . . . . . . . . High Security . | . . . . . . . . . . . . . . . . . . . . . . . . Max Security . | . . . . . . . . . . . . . . . . . . . . . . . . Squads Dispatched 42 | . . . 1 1 4 4 . . . 1 8 . . . . 4 1 . . 4 8 1 5 Investigation 4 | . . . 1 1 . 1 . . . . . . . . . 1 . . . . . . . Extermination 14 | . . . . . . 2 . . . . 3 . . . . 2 . . . 1 4 1 1 Reinforcement 14 | . . . . . 1 1 . . . . 4 . . . . 1 1 . . 2 2 . 2 Assault 5 | . . . . . . . . . . 1 . . . . . . . . . . 2 . 2 Garrison 5 | . . . . . 3 . . . . . 1 . . . . . . . . 1 . . . Intercept . | . . . . . . . . . . . . . . . . . . . . . . . . Searches Triggered . | . . . . . . . . . . . . . . . . . . . . . . . . Data Miner Redirects 3 | . . . . . . . . . . . . . . . . . . . . . 2 . 1 Construction Impeded 2 | . . . . . . . . . . . . . . . . . 1 . . . . . 1 Haulers Reinforced 3 | . . . . . . . . . . . 1 . . . . . . . . . 1 . 1 Active Scanning Responses . | . . . . . . . . . . . . . . . . . . . . . . . . Cargo Convoy Interrupts 1 | . . . . . . . . . . . 1 . . . . . . . . . . . . Stealth | -11 -10 -10 -9 -8 -8 -7 -7 -7 -7 -6 -6 -6 -6 -6 -5 -5 -5 -5 -5 -5 -4 -3 -2 --------- Run | Yrd Mat Min Mat Mat Sto Fac Low Low Zio Pro Fac Low Low Dat Pro Fac Ext Cet Arc Hub Fac Res Res Distress Signals 16 | . . . 2 . 2 . . . . . 2 . . . . 1 1 1 . 4 2 . 1 Communications Jammed 37 | . . . . . . . . . . . . . . . . . . . . . 35 2 . Distress Signals 35 | . . . . . . . . . . . . . . . . . . . . . 35 . . Times Spotted 364 | . 7 2 32 3 28 33 11 1 . 12 34 5 8 . 5 16 30 5 10 23 68 5 26 Peak Tracking Total 10 | . 3 2 8 3 4 7 9 1 . 9 4 4 4 . 3 6 4 4 1 4 10 2 7 Tactical Retreats 20 | . . . 5 . 1 1 1 . . 4 . . . . . 1 1 . . 3 3 . . Traps | -11 -10 -10 -9 -8 -8 -7 -7 -7 -7 -6 -6 -6 -6 -6 -5 -5 -5 -5 -5 -5 -4 -3 -2 ------- Run | Yrd Mat Min Mat Mat Sto Fac Low Low Zio Pro Fac Low Low Dat Pro Fac Ext Cet Arc Hub Fac Res Res Traps Triggered 13 | . 1 . . . 2 1 . . . . 4 . . . . 1 3 . . . 1 . . Indirectly 6 | . . . . . . . . . . . 4 . . . . . 2 . . . . . . Trap Hack Attempts . | . . . . . . . . . . . . . . . . . . . . . . . . Triggered . | . . . . . . . . . . . . . . . . . . . . . . . . Disarmed . | . . . . . . . . . . . . . . . . . . . . . . . . Reprogrammed . | . . . . . . . . . . . . . . . . . . . . . . . . Reused . | . . . . . . . . . . . . . . . . . . . . . . . . Traps Extracted . | . . . . . . . . . . . . . . . . . . . . . . . . Installed . | . . . . . . . . . . . . . . . . . . . . . . . . Triggered 4 | . . . . . . . . . . . 4 . . . . . . . . . . . . Objects Rigged 1 | . . . . . . . . . . . . . . . . . . . . 1 . . . Machines | -11 -10 -10 -9 -8 -8 -7 -7 -7 -7 -6 -6 -6 -6 -6 -5 -5 -5 -5 -5 -5 -4 -3 -2 ---------- Run | Yrd Mat Min Mat Mat Sto Fac Low Low Zio Pro Fac Low Low Dat Pro Fac Ext Cet Arc Hub Fac Res Res Machines Disabled 36 | . . . . . 5 1 . . . . 1 . . . . . 4 . 3 8 14 . . Max in Single Turn 3 | . . . . . 1 1 . . . . 1 . . . . . 1 . 1 3 3 . . Garrison Access 2 | . . . . . . 1 . . . . . . . . . . . . . 1 . . . Network Hub 1 | . . . . . . . . . . . . . . . . . . . . 1 . . . Machines Repaired . | . . . . . . . . . . . . . . . . . . . . . . . . Machines Dismantled . | . . . . . . . . . . . . . . . . . . . . . . . . Machines Sabotaged . | . . . . . . . . . . . . . . . . . . . . . . . . Overloaded Fab Kills . | . . . . . . . . . . . . . . . . . . . . . . . . Hacking | -11 -10 -10 -9 -8 -8 -7 -7 -7 -7 -6 -6 -6 -6 -6 -5 -5 -5 -5 -5 -5 -4 -3 -2 --------- Run | Yrd Mat Min Mat Mat Sto Fac Low Low Zio Pro Fac Low Low Dat Pro Fac Ext Cet Arc Hub Fac Res Res Machines Accessed 42 | . . . 4 . 4 6 1 1 . . 4 . . 4 . 4 3 . . 5 3 2 1 Terminals 22 | . . . 3 . 3 3 . . . . 1 . . . . 1 3 . . 4 2 1 1 Fabricators 1 | . . . . . . . . . . . . . . . . 1 . . . . . . . Repair Stations 3 | . . . . . 1 1 . . . . . . . . . 1 . . . . . . . Recycling Units 7 | . . . 1 . . 1 . . . . 2 . . . . 1 . . . . 1 1 . Scanalyzers . | . . . . . . . . . . . . . . . . . . . . . . . . Garrison Access 3 | . . . . . . 1 . . . . 1 . . . . . . . . 1 . . . Total Hacks 121 | . . . 11 . 14 13 1 1 . . 8 . . 28 . 10 8 . . 10 10 5 2 Successful 59 | . . . 3 . 4 3 1 1 . . 4 . . 28 . 3 3 . . 2 4 2 1 Failed 62 | . . . 8 . 10 10 . . . . 4 . . . . 7 5 . . 8 6 3 1 Catastrophic 12 | . . . 2 . 2 3 . . . . 1 . . . . . 1 . . 2 . 1 . Database Lockouts . | . . . . . . . . . . . . . . . . . . . . . . . . Manual 44 | . . . 9 . 8 5 . . . . 1 . . . . 2 6 . . 8 1 3 1 Terminals 64 | . . . 9 . 9 9 . . . . 3 . . . . 4 8 . . 9 9 2 2 Fabricators 2 | . . . . . . . . . . . . . . . . 2 . . . . . . . Repair Stations 8 | . . . . . 5 1 . . . . . . . . . 2 . . . . . . . Recycling Units 13 | . . . 2 . . 1 . . . . 4 . . . . 2 . . . . 1 3 . Scanalyzers . | . . . . . . . . . . . . . . . . . . . . . . . . Garrison Access 4 | . . . . . . 2 . . . . 1 . . . . . . . . 1 . . . Terminal Hacks 43 | . . . 2 . 2 1 1 1 . . 1 . . 28 . . 3 . . . 3 . 1 Record 11 | . . . . . . . . . . . . . . 11 . . . . . . . . . Part Schematic 9 | . . . 1 . . . . . . . . . . 8 . . . . . . . . . Robot Schematic 6 | . . . . . . . . . . . . . . 6 . . . . . . . . . Prototype ID Bank 5 | . . . 1 . . 1 . . . . . . . 3 . . . . . . . . . Open Door 3 | . . . . . 1 . 1 1 . . . . . . . . . . . . . . . Terminal Index 1 | . . . . . . . . . . . 1 . . . . . . . . . . . . Alert Level 2 | . . . . . . . . . . . . . . . . . 1 . . . 1 . . Unreport Threat 5 | . . . . . 1 . . . . . . . . . . . 2 . . . 2 . . Zone Layout 1 | . . . . . . . . . . . . . . . . . . . . . . . 1 Fabricator Hacks 2 | . . . . . . . . . . . . . . . . 2 . . . . . . . Load Schematic 1 | . . . . . . . . . . . . . . . . 1 . . . . . . . Build 1 | . . . . . . . . . . . . . . . . 1 . . . . . . . Repair Station Hacks 2 | . . . . . 2 . . . . . . . . . . . . . . . . . . Scan Component 1 | . . . . . 1 . . . . . . . . . . . . . . . . . . Repair 1 | . . . . . 1 . . . . . . . . . . . . . . . . . . Recycling Unit Hacks 2 | . . . . . . . . . . . 2 . . . . . . . . . . . . Retrieve Matter 2 | . . . . . . . . . . . 2 . . . . . . . . . . . . Scanalyzer . | . . . . . . . . . . . . . . . . . . . . . . . . Garrison Access Hacks 2 | . . . . . . 1 . . . . . . . . . . . . . 1 . . . Seal Access 2 | . . . . . . 1 . . . . . . . . . . . . . 1 . . . Unauthorized Hacks 8 | . . . 1 . . 1 . . . . 1 . . . . 1 . . . 1 1 2 . Terminals 2 | . . . . . . . . . . . . . . . . . . . . 1 . 1 . Assimilate 1 | . . . . . . . . . . . . . . . . . . . . . . 1 . Detonate 1 | . . . . . . . . . . . . . . . . . . . . 1 . . . Fabricators . | . . . . . . . . . . . . . . . . . . . . . . . . Repair Stations . | . . . . . . . . . . . . . . . . . . . . . . . . Recycling Units 6 | . . . 1 . . 1 . . . . 1 . . . . 1 . . . . 1 1 . Recyclers 6 | . . . 1 . . 1 . . . . 1 . . . . 1 . . . . 1 1 . Scanalyzers . | . . . . . . . . . . . . . . . . . . . . . . . . Garrison Access . | . . . . . . . . . . . . . . . . . . . . . . . . Data Cores Recovered 1 | . . . . . . 1 . . . . . . . . . . . . . . . . . Used . | . . . . . . . . . . . . . . . . . . . . . . . . Hacking Detections 26 | . . . 4 . 3 4 . . . . 4 . . . . 2 2 . . 4 2 1 . Full Trace Events 2 | . . . 1 . . 1 . . . . . . . . . . . . . . . . . Feedback Events 1 | . . . 1 . . . . . . . . . . . . . . . . . . . . Corruption 1 | . . . 1 . . . . . . . . . . . . . . . . . . . . Feedback Blocked . | . . . . . . . . . . . . . . . . . . . . . . . . Robot Schematics Acquired 6 | . . . . . . . . . . . . . . 6 . . . . . . . . . Robots Built . | . . . . . . . . . . . . . . . . . . . . . . . . Authchips . | . . . . . . . . . . . . . . . . . . . . . . . . Time . | . . . . . . . . . . . . . . . . . . . . . . . . Total Robot Build Rating . | . . . . . . . . . . . . . . . . . . . . . . . . Part Schematics Acquired 9 | . . . 1 . . . . . . . . . . 8 . . . . . . . . . Parts Built 1 | . . . . . . . . . . . . . . . . 1 . . . . . . . Authchips 1 | . . . . . . . . . . . . . . . . 1 . . . . . . . Time 76 | . . . . . . . . . . . . . . . . 76 . . . . . . . Total Part Build Rating 5 | . . . . . . . . . . . . . . . . 5 . . . . . . . Parts Repaired 1 | . . . . . 1 . . . . . . . . . . . . . . . . . . Time 32 | . . . . . 32 . . . . . . . . . . . . . . . . . . Parts Recycled . | . . . . . . . . . . . . . . . . . . . . . . . . Recycled Matter . | . . . . . . . . . . . . . . . . . . . . . . . . Retrieved Matter . | . . . . . . . . . . . . . . . . . . . . . . . . Retrieved Components . | . . . . . . . . . . . . . . . . . . . . . . . . Parts Scanalyzed . | . . . . . . . . . . . . . . . . . . . . . . . . Part Schematics Acquired . | . . . . . . . . . . . . . . . . . . . . . . . . Parts Damaged . | . . . . . . . . . . . . . . . . . . . . . . . . Bothacking | -11 -10 -10 -9 -8 -8 -7 -7 -7 -7 -6 -6 -6 -6 -6 -5 -5 -5 -5 -5 -5 -4 -3 -2 ------------ Run | Yrd Mat Min Mat Mat Sto Fac Low Low Zio Pro Fac Low Low Dat Pro Fac Ext Cet Arc Hub Fac Res Res Used RIF Installer . | . . . . . . . . . . . . . . . . . . . . . . . . Robots Hacked . | . . . . . . . . . . . . . . . . . . . . . . . . Non-combat . | . . . . . . . . . . . . . . . . . . . . . . . . Combat . | . . . . . . . . . . . . . . . . . . . . . . . . Robot Hacks Applied . | . . . . . . . . . . . . . . . . . . . . . . . . Relay Couplers Released 3 | . . . . . . . . . . . 3 . . . . . . . . . . . . Programmers 3 | . . . . . . . . . . . 3 . . . . . . . . . . . . Fabnet Peak Effective % . | . . . . . . . . . . . . . . . . . . . . . . . . Robots Rewired 18 | . . . . . . . . . . 1 . . . . . . 17 . . . . . . Allies Hacked . | . . . . . . . . . . . . . . . . . . . . . . . . Hacks Repelled . | . . . . . . . . . . . . . . . . . . . . . . . . Allies | -11 -10 -10 -9 -8 -8 -7 -7 -7 -7 -6 -6 -6 -6 -6 -5 -5 -5 -5 -5 -5 -4 -3 -2 -------- Run | Yrd Mat Min Mat Mat Sto Fac Low Low Zio Pro Fac Low Low Dat Pro Fac Ext Cet Arc Hub Fac Res Res Total Allies 28 | . . . . . . . . . . 1 1 . . . . . 25 . . . . 1 . Largest Group 9 | . . . . . . . . . . 1 1 . . . . . 9 6 3 . . 1 1 Highest-Rated Group 255 | . . . . . . . . . . 29 99 . . . . . 255 186 96 . . 26 26 Highest-Rated Ally 159 | . . . . . . . . . . 29 99 . . . . . 159 39 34 . . 26 26 Total Orders 7 | . . . . . . . . . . . . . . . . 3 . . . . 4 . . EXPLORE 6 | . . . . . . . . . . . . . . . . 3 . . . . 3 . . RETURN 1 | . . . . . . . . . . . . . . . . . . . . . 1 . . Ally Attacks 225 | . . . . . . . . . . 1 7 . . . . . 153 45 19 . . . . Total Damage 4820 | . . . . . . . . . . 14 536 . . . . . 3284 712 274 . . . . Kills 33 | . . . . . . . . . . . 2 . . . . . 26 4 1 . . . . Allies Corrupted 1 | . . . . . . . . . . . 1 . . . . . . . . . . . . Allies Melted 1 | . . . . . . . . . . . . . . . . . 1 . . . . . . Intel | -11 -10 -10 -9 -8 -8 -7 -7 -7 -7 -6 -6 -6 -6 -6 -5 -5 -5 -5 -5 -5 -4 -3 -2 ------- Run | Yrd Mat Min Mat Mat Sto Fac Low Low Zio Pro Fac Low Low Dat Pro Fac Ext Cet Arc Hub Fac Res Res Robot Analysis Total . | . . . . . . . . . . . . . . . . . . . . . . . . Derelict Logs Recovered 8 | . . 1 . . . . 1 1 1 1 . 1 1 . 1 . . . . . . . . Drone Launches 8 | . . . . . . . . . . . . . . . . 3 . . . 1 4 . . Drone Recoveries 6 | . . . . . . . . . . . . . . . . 1 . . . 1 4 . . Exploration | -11 -10 -10 -9 -8 -8 -7 -7 -7 -7 -6 -6 -6 -6 -6 -5 -5 -5 -5 -5 -5 -4 -3 -2 ------------- Run | Yrd Mat Min Mat Mat Sto Fac Low Low Zio Pro Fac Low Low Dat Pro Fac Ext Cet Arc Hub Fac Res Res Turns Passed 19184 | 65 190 128 925 84 924 1606 834 577 1041 819 2962 620 543 150 406 880 1556 198 511 1412 1908 264 581 Spaces Moved 9620 | 50 133 78 492 50 382 811 431 364 669 265 1331 376 320 93 230 377 781 95 174 730 847 209 332 Core 6 | 5 . . . . . . . . . . . . . . . . . . . . 1 . . Treads 8340 | . . . 91 50 382 811 431 364 669 265 1331 376 320 93 230 377 781 95 174 730 766 . 4 Legs 4 | . . . . . . . . . . . . . . . . . . . . . 4 . . Wheels 1270 | 45 133 78 401 . . . . . . . . . . . . . . . . . 76 209 328 Hover . | . . . . . . . . . . . . . . . . . . . . . . . . Flight . | . . . . . . . . . . . . . . . . . . . . . . . . Fastest Speed 50 | 50 90 105 90 160 160 160 155 155 155 155 155 156 156 156 156 156 158 158 160 160 95 105 120 Average Speed 155 | 86 97 105 117 160 160 161 157 155 155 155 170 156 156 156 156 184 158 164 160 160 157 108 127 Slowest Speed 850 | 100 105 115 160 160 160 243 162 155 155 158 243 156 156 156 156 238 235 243 162 160 850 120 400 Overloaded Moves . | . . . . . . . . . . . . . . . . . . . . . . . . Propulsion Burnouts . | . . . . . . . . . . . . . . . . . . . . . . . . Robots Hopped 1 | . . . . . . . . . . . . . . . . . 1 . . . . . . Cave-ins Triggered 1 | . . . . . . . . . . . . . . . . . . . . . . . 1 Exploration Rate (%) 42 | 4 30 19 35 6 61 22 68 62 78 51 28 62 46 70 46 18 76 48 81 60 26 7 11 Regions Visited 23 Branch Regions 14 Pre-discovered Areas 3 | . . . . . . . . . 1 1 . . . 1 . . . . . . . . . Known Exits Taken 3 | . . . . . . . . . . . 1 . 1 . 1 . . . . . . . . Unknown Exits Taken 20 | 1 1 1 1 1 1 1 1 1 1 1 . 1 . 1 . 1 1 1 1 1 1 1 . Scrap Searched 24 | . . . . . . . 11 3 3 1 . 3 . . 3 . . . . . . . . Spaces Dug 27 | . . . . . . . . . . . 1 . . . . . . . . 16 10 . . Terrain Destroyed 406 | . . . . . . 9 7 . . 7 1 . . . . . 13 2 3 184 142 . 38 Melee 13 | . . . . . . . . . . . 1 . . . . . . . . 7 5 . . Projectile 120 | . . . . . . . . . . 7 . . . . . . 13 2 3 18 77 . . AOE 271 | . . . . . . 9 7 . . . . . . . . . . . . 158 59 . 38 Terrain Rammed . | . . . . . . . . . . . . . . . . . . . . . . . . Walls Destroyed . | . . . . . . . . . . . . . . . . . . . . . . . . Machines Disabled . | . . . . . . . . . . . . . . . . . . . . . . . . Actions | -11 -10 -10 -9 -8 -8 -7 -7 -7 -7 -6 -6 -6 -6 -6 -5 -5 -5 -5 -5 -5 -4 -3 -2 --------- Run | Yrd Mat Min Mat Mat Sto Fac Low Low Zio Pro Fac Low Low Dat Pro Fac Ext Cet Arc Hub Fac Res Res Total 12571 | 62 169 98 731 52 586 977 570 371 674 615 1797 391 343 98 250 492 1020 128 387 896 1162 242 460 Wait 1457 | . 16 6 120 . 91 51 115 2 . 296 264 . . . . 50 11 . 175 82 132 15 31 Move 9596 | 49 132 77 491 50 381 810 430 363 668 264 1330 375 319 92 229 376 778 94 173 729 846 208 332 Hop 1 | . . . . . . . . . . . . . . . . . 1 . . . . . . Pick Up 101 | 4 3 1 16 . 7 11 2 . 1 . 11 . 1 . 1 6 9 7 . 4 10 3 4 Fast Attach 106 | 6 2 1 8 1 3 6 . 1 1 2 18 2 2 3 1 6 11 4 3 4 11 1 9 Attach 60 | . . . 6 . 2 4 3 . . . 7 . . . 1 6 3 3 . . 18 2 5 Detach 23 | . 1 . 4 . 1 1 1 . . . 6 1 . . . 1 1 1 . . 4 . 1 Swap 99 | . 1 1 9 . 17 11 3 2 1 . 10 3 2 . . 1 6 2 7 13 9 . 1 Drop 132 | . 2 . 17 . 18 11 4 1 3 1 16 1 5 3 1 3 13 10 9 11 3 . . Fire 825 | 3 12 12 59 . 65 72 12 2 . 26 133 9 14 . 17 43 61 7 20 45 123 13 77 Melee 16 | . . . . . . . . . . . 2 . . . . . . . . 8 6 . . Ram . | . . . . . . . . . . . . . . . . . . . . . . . . Kick . | . . . . . . . . . . . . . . . . . . . . . . . . Crush 3 | . . . 1 1 1 . . . . . . . . . . . . . . . . . . Escape Stasis . | . . . . . . . . . . . . . . . . . . . . . . . . Rewire 152 | . . . . . . . . . . 26 . . . . . . 126 . . . . . . Trap . | . . . . . . . . . . . . . . . . . . . . . . . . Miscellaneous . | . . . . . . . . . . . . . . . . . . . . . . . . Route ------- -11/Scrapyard -10/Materials (discovered 2 exits: *Mat / [*Min]) -10/Mines -9/Materials -8/Materials -8/Storage -7/Factory (discovered 2 exits: *Low x2) -7/Lower Caves -7/Lower Caves -7/Zion -6/Proximity Caves -6/Factory -6/Lower Caves -6/Lower Caves -6/Data Miner -5/Proximity Caves -5/Factory -5/Extension (discovered 2 exits: *Fac / [*Cet]) -5/Cetus -5/Archives (discovered 3 exits: *Fac / *Hub x2) -5/Hub_04(d) (discovered 2 exits: *Fac x2) -4/Factory -3/Research -2/Research History --------- Turn | Location | Event 13 | -11/Scrapyard | Discovered new exit (range 15) 66 | -11/Scrapyard | Entered Materials 119 | -10/Materials | Discovered new exit (range 12) 208 | -10/Materials | Discovered new exit (range 16) 256 | -10/Materials | Entered Mines 309 | -10/Mines | Build established: Mutant 352 | -10/Mines | Learned Materials stockpile data 369 | -10/Mines | Discovered new exit (range 6) 384 | -10/Mines | Entered Materials 384 | -9/Materials | Evolved 2 slots: Propulsion x1, Utility x1 999 | -9/Materials | Build established: Scavenger-Mutant 1135 | -9/Materials | Discovered new exit (range 8) 1309 | -9/Materials | Entered another Materials area 1309 | -8/Materials | Evolved 2 slots: Utility x1, Weapon x1 1356 | -8/Materials | Discovered new exit (range 13) 1393 | -8/Materials | Entered Storage 1716 | -8/Storage | Garrison activated, responded to threat 1864 | -8/Storage | Build established: Gunner 2000 | -8/Storage | Repaired Med. Armor Plating 2251 | -8/Storage | Discovered new exit (range 16) 2317 | -8/Storage | Entered Factory 2317 | -7/Factory | Evolved 2 slots: Propulsion x1, Utility x1 2852 | -7/Factory | Discovered new exit (range 16) 3221 | -7/Factory | Discovered new exit (range 14) 3923 | -7/Factory | Entered Lower Caves 4186 | -7/Lower Caves | Spotted B-75 Beast 4416 | -7/Lower Caves | Encountered a Warlord checkpoint 4515 | -7/Lower Caves | Attracted the attention of an 0b10 checkpoint 4535 | -7/Lower Caves | Learned Factory terminal intel 4631 | -7/Lower Caves | Found Prototype Device 4708 | -7/Lower Caves | Attracted the attention of an 0b10 outpost 4741 | -7/Lower Caves | Discovered new exit (range 11) 4747 | -7/Lower Caves | Destroyed 9 combat bots 4757 | -7/Lower Caves | Entered another Lower Caves area 4806 | -7/Lower Caves | Learned Factory garrison access intel 5326 | -7/Lower Caves | Discovered new exit (range 6) 5334 | -7/Lower Caves | Entered Zion 5347 | -7/Zion | Learned Factory trap positions 5384 | -7/Zion | System corruption cleaned by Quarantine Array 5434 | -7/Zion | Learned Factory emergency access door positions 5480 | -7/Zion | Given A8's code to call for help 5667 | -7/Zion | Found Unknown Piercing Weapon 6077 | -7/Zion | Learned location of Quarantine (-2) 6106 | -7/Zion | Received a hallucinogenic algorithm 6359 | -7/Zion | Discovered new exit (range 11) 6375 | -7/Zion | Entered Proximity Caves 6542 | -6/Proximity Caves | Received a Behemoth hack from an annoying Tinkerer 6608 | -6/Proximity Caves | Build established: Derelict-Gunner 6968 | -6/Proximity Caves | Attracted the attention of an 0b10 outpost 7173 | -6/Proximity Caves | Discovered new exit (range 14) 7194 | -6/Proximity Caves | Entered Factory 7194 | -6/Factory | Evolved 2 slots: Utility x2 7195 | -6/Factory | Loaded intel: 89 trap records 7195 | -6/Factory | Identified Heart of Steel 7197 | -6/Factory | Loaded intel: 26 terminal locations 7198 | -6/Factory | Loaded intel: 4 garrison access locations 7586 | -6/Factory | Build established: Gunner 7956 | -6/Factory | Cargo convoy interrupted 8126 | -6/Factory | Build established: Mutant 8530 | -6/Factory | Build established: Gunner 8691 | -6/Factory | Heart of Steel transformed into Warbot 8808 | -6/Factory | System corruption reached 10% 9240 | -6/Factory | Identified CR-A16's Pointy Stick 9542 | -6/Factory | Build established: Mutant 9596 | -6/Factory | Destroyed Warbot 9980 | -6/Factory | Garrison activated, responded to threat 10063 | -6/Factory | Build established: Scavenger-Gunner 10140 | -6/Factory | Discovered new exit (range 10) 10155 | -6/Factory | Identified exit to Lower Caves 10156 | -6/Factory | Entered Lower Caves 10157 | -6/Lower Caves | Encountered a Warlord checkpoint 10471 | -6/Lower Caves | Learned Factory stockpile data 10711 | -6/Lower Caves | Discovered new exit (range 5) 10776 | -6/Lower Caves | Entered another Lower Caves area 10789 | -6/Lower Caves | Ambushed by wild Derelicts 11236 | -6/Lower Caves | Identified exit to Data Miner 11319 | -6/Lower Caves | Entered Data Miner 11319 | -6/Data Miner | Discovered new exit (range 7) 11351 | -6/Data Miner | Met Data Miner 11385 | -6/Data Miner | Learned location of Section 7 (-2) 11385 | -6/Data Miner | Acquired the access code to Warlord's prototype stash 11408 | -6/Data Miner | Received God Mode back door access code from Data Miner 11469 | -6/Data Miner | Entered Proximity Caves 11568 | -5/Proximity Caves | Identified exit to Factory 11875 | -5/Proximity Caves | Entered Factory 11875 | -5/Factory | Evolved 2 slots: Power x1, Utility x1 11977 | -5/Factory | Fabricated Lgt. Regenerative Plating? 12155 | -5/Factory | Build established: Gunner 12321 | -5/Factory | Lost 5 parts (3n2u) 12575 | -5/Factory | Discovered new exit (range 37) 12755 | -5/Factory | Entered Extension 12893 | -5/Extension | Rescued a captive Derelict 13621 | -5/Extension | Rescued A7 13622 | -5/Extension | Spotted B-75 Beast 13628 | -5/Extension | Spotted B-75 Beast 13654 | -5/Extension | Destroyed B-75 Beast 13655 | -5/Extension | Disrupted transfer network 13659 | -5/Extension | Lost 8 allies 13668 | -5/Extension | Destroyed B-75 Beast 13818 | -5/Extension | Rescued a captive Derelict 13819 | -5/Extension | Rescued a captive Derelict 13962 | -5/Extension | Lost 4 allies 14018 | -5/Extension | Rescued a captive Derelict 14019 | -5/Extension | Rescued a captive Derelict 14094 | -5/Extension | Rescued a captive Derelict 14290 | -5/Extension | Discovered new exit (range 10) 14291 | -5/Extension | Discovered new exit (range 6) 14311 | -5/Extension | Entered Cetus 14311 | -5/Cetus | Accompanied by 6 allies 14332 | -5/Cetus | Spotted Cetus Guard 14332 | -5/Cetus | Spotted Cetus Guard 14332 | -5/Cetus | Allies destroyed Cetus Guard 14334 | -5/Cetus | Spotted Cetus Guard 14349 | -5/Cetus | Destroyed Cetus Guard 14349 | -5/Cetus | Spotted Cetus Guard 14358 | -5/Cetus | Allies destroyed Cetus Guard 14372 | -5/Cetus | Allies destroyed Cetus Guard 14387 | -5/Cetus | System corruption reached 10% 14393 | -5/Cetus | Lost 3 allies 14485 | -5/Cetus | Discovered new exit (range 15) 14509 | -5/Cetus | Entered Archives 14509 | -5/Archives | Accompanied by 3 allies 14582 | -5/Archives | Discovered new exit (range 16) 14608 | -5/Archives | Discovered new exit (range 16) 14624 | -5/Archives | Discovered new exit (range 16) 14870 | -5/Archives | Build established: Scavenger-Gunner 15020 | -5/Archives | Entered Hub_04(d) 15069 | -5/Hub_04(d) | Garrison activated, responded to threat 15585 | -5/Hub_04(d) | Discovered new exit (range 8) 15609 | -5/Hub_04(d) | Spotted B-75 Beast 16106 | -5/Hub_04(d) | Discovered new exit (range 6) 16419 | -5/Hub_04(d) | Network Hub disabled 16432 | -5/Hub_04(d) | Entered Factory 16432 | -4/Factory | Evolved 2 slots: Propulsion x2 16966 | -4/Factory | System corruption reached 10% 17042 | -4/Factory | Destroyed 10 combat bots 17048 | -4/Factory | Lost 12 parts (1p4n5u2w) 17915 | -4/Factory | Lost 5 parts (1n2u2w) 17925 | -4/Factory | Destroyed 7 combat bots 17932 | -4/Factory | First assault squad dispatched 18034 | -4/Factory | Incoming assault squad redirected 18091 | -4/Factory | Lost 5 parts (1p1n2u1w) 18177 | -4/Factory | Core integrity fell below 50% 18215 | -4/Factory | Lost 3 parts (1n2w) 18261 | -4/Factory | Incoming assault squad redirected 18275 | -4/Factory | Lost 5 parts (1p2n1u1w) 18310 | -4/Factory | Discovered new exit (range 16) 18340 | -4/Factory | Entered Research 18340 | -3/Research | Evolved 2 slots: Utility x2 18476 | -3/Research | Found Unknown Device 18476 | -3/Research | Identified Quantum Capacitor 18478 | -3/Research | Found Quantum Capacitor 18481 | -3/Research | Found Quantum Capacitor 18497 | -3/Research | Build established: Mutant 18589 | -3/Research | Discovered new exit (range 3) 18604 | -3/Research | Entered another Research area 18604 | -2/Research | Accompanied by 1 ally 18604 | -2/Research | Evolved 2 slots: Utility x2 18745 | -2/Research | Crushed by falling debris 18854 | -2/Research | First assault squad dispatched 19044 | -2/Research | Lost 6 parts (1p2n2u1w) 19135 | -2/Research | System corruption reached 10% 19151 | -2/Research | Incoming assault squad redirected 19185 | -2/Research | Self-destructed Last Messages --------------- 19158_ P-80 Master resets P-80 Master, system corruption cleaned. 19158_ K-01 Serf collects debris. 19158_ HV Slug penetrates K-01 Serf. 19158_ K-01 Serf suffers critical hit (Destroy). 19158_ K-01 Serf destroyed. 19160_ Med. Treads destroyed. 19160_ Hvy. Tesla Rifle destroyed. 19160_ P-80 Master destroyed. 19161_ K-01 Serf collects debris. 19175_ W-44 Eye sends out distress signal. 19176_ K-01 Serf collects debris. 19178_ =THILP&W/4E8EE#IB25W JALWGWZI 19179_ K-01 Serf collects debris. 19181_ P-80 Master suffers critical hit (Destroy). 19181_ Destroyed Gamma Rifle. 19183_ P-80 Master knocked back. 19183_ Slug penetrates Wall. 19184_ K-01 Serf collects debris. Map ----- +----------------------------------------------------+ | ?????????????????????????????????????????????????? | | ?????????????????????????????????????????????????? | | ?????????????????????????????????????????????????? | | ?????????????????????????????????????????????????? | | ?????????????????????????????????????????????????? | | ?????????????????????????????????????????????????? | | ?????????????????????????????????????????????????? | | ???????????????????????????? ??????????????????? | | ???????????????????????????? ????????????????? | | ???????????????????????????? ????????????????? | | ???????????????????????????? ???? ???????????? | | ???????????????????????????? "??? ?????????? | | ???????????????????????????? """ ?????????? | | ???????????????????????????? """ ????????? | | ???????????????????????????# u "????????? | | ???????????????????????????# [ ????????? | | ???????????????????????????# ""???????? | | ???????????????????????????# *%= ???????? | | ???????????????????????????# =!% t ??????? | | ???????????????????????????#[[%! ! ???????? | | ???????????????????????????#%!!%% #?????????? | | ???????????????????????????#h[=[ #?????????? | | ?????????????###############h[% #?????????? | | #####????????# !p=[| #?????????? | | [=#????????# [= !k #?????????? | | ==%########## !^% @ p #?????????? | | !*[%+[=% %=*= %* % p #?????????? | | =[%#%*= ########+#### ########### #?????????? | | %/#=/= #????? ?# #??????????? #?????????? | | ! !#* #??? # #???????????? #?????????? | | ######## #??# # #??????????????#?????????? | | ???????# #??# # #????????????????????????? | | ####?### #### # #????????????????????????? | | # ## # #????????????????????????? | | # ## # #????????????????????????? | | + % ## # #????????????????????????? | | # ## # #????????????????????????? | | # ########### #????????????????????????? | | ?## ##?????????# #????????????????????????? | | ####??# #??######??? ?????????????????????????? | | #####?# #?? ???? ?????????????????????????? | | #?# #? ???? ?????????????????????????? | | ### #? """ ??????????????????????????????? | | # """ ? ? ??????????? ????????? | | ### # """ # ??????????? ??????? | | #?# + ** # ??????????? ???? | | # ###?# # *! # #???????### "??? | | # #???# ############ ######### # """ | | # ######+#### # ## ! ## | | # # ^ / # ## ## | +----------------------------------------------------+ Best States ------------- Heat Dissipation 92 Energy Generation 43 Energy Capacity 800 Matter Stores 300 Matter Capacity 300 Sight Range 16 Terrain Scan Density 10 Jamming Range 14 Power Amplification 20 Armor Coverage 450 Resistance: TH 20 Propulsion Shielding 33 Weapon Cycling 15 Evasion (%) 42 Targeting Accuracy 8 Core Analysis 6 Recoil Reduction 6 Kinecelleration 30 Offensive Hacking 14 Authchip Count 3 Item Schematics ----------------- Hcp. Storage Unit | -9/Materials | Hacked Combat Drone Bay | -6/Data Miner | Free Lgt. Regenerative Plating | -6/Data Miner | Free Exp. Cesium-ion Thruster | -6/Data Miner | Free Prc. Energy Filter | -6/Data Miner | Free Enh. Coil Gun | -6/Data Miner | Free Imp. Antigrav System | -6/Data Miner | Free Adv. Particle Charger | -6/Data Miner | Free Dispersion Rifle | -6/Data Miner | Free Robot Schematics ------------------ B-48 Gladiator | -6/Data Miner | Free S-27 Virus | -6/Data Miner | Free Y-64 Sentinel | -6/Data Miner | Free B-60 Warrior | -6/Data Miner | Free M-36 Artificer | -6/Data Miner | Free R-10 Processor | -6/Data Miner | Free Fabricated ------------ Lgt. Regenerative Plating | x1 | -5/Factory | Authchip Alien Tech Used ----------------- None Achievements -------------- None Challenges ------------ None Game ------ Seed ElectronThrusterBarrier Manual? 0 Play Time 02:07:01 Cumulative 442.6 hours Start 2024.06.09 @ 17:38:52 End 2024.06.09 @ 20:16:29 Sessions 5 Manual Loads 0 Difficulty Rogue Special Mode None Game No. 493 Rogue 493 Adventurer 0 Explorer 0 Win Type - Total 36 Types 24/3/8/1/0/0/0/0/0 Lore% 74 Gallery% 84 Achievement% 64 Wizard Run 0 Options --------- Layout 1 ASCII 1 Keyboard 1 Movement Numpad Keybinds 0 Fullscreen 1 Font 24/Tamsyn Map View 50x35 Zoom Use 0% Tactical HUD 1 Map Filters NONE Filters NONE Steam 1 RUN: e2af3a5b-7d61-439e-a169-dcf0f620bb10